Cogmind - Beta 10.1 @@@ ROGUE MODE // 2020.10.09 @ 17:53:43 Player: Demise Result: Destroyed by 8R-AWN with 8R-AWN's Boregun Performance ------------- Evolutions (0) 0 Regions Visited (3) 600 Robots Destroyed (50) 250 Value Destroyed (627) 627 Prototype IDs (26) 520 Alien Tech Used (0) 0 Bonus (18) 18 TOTAL SCORE: 2015 Bonus ------- Aligned with FarCom 300 Friendly Fire -282 Cogmind --------- Core Integrity 0/250 Matter 97/300 Energy 160/160 System Corruption 0% Temperature Cool (69) Movement Rolling (90) Ox1 Location -10/Exiles Parts ------- > --- POWER (1) -------- Light Nuclear Core > --- PROPULSION (2) --- Wheel > --- UTILITY (2) ------ Core Shielding Utility Shielding > --- WEAPON (2) ------- Assault Rifle Light Cannon > --- INVENTORY (4) ---- High-capacity Battery (400) High-capacity Matter Pod (0) Grenade Launcher Peak State ------------ > --- POWER ------------ Light Nuclear Core > --- PROPULSION ------- Light Treads Light Treads > --- UTILITY ---------- Decoy Drone Bay > --- WEAPON ----------- Light Cannon Grenade Launcher > --- INVENTORY -------- Light Nuclear Core Light Armor Plating Improved Light Armor Plating Light Cannon [Rating: 21] Favorites ----------- Power Light Nuclear Core Engine Ion Engine Power Core Light Nuclear Core Propulsion Light Treads Treads Light Treads Leg Aluminum Leg Wheel Wheel Utility Large Storage Unit Device Decoy Drone Bay Storage Large Storage Unit Protection Core Shielding Weapon Assault Rifle Energy Gun Particle Gun Ballistic Gun Assault Rifle Ballistic Cannon Light Cannon Launcher Grenade Launcher Special Weapon Mining Laser Build | -11 -10 -10 -10 ------- Run | Scr Mat Min Exi Slots Evolved . | . . . . Power . | . . . . Propulsion . | . . . . Utility . | . . . . Weapon . | . . . . Parts Attached 42 | 4 14 8 16 Power 5 | . 2 2 1 Engine 2 | . 2 . . Core 3 | . . 2 1 Reactor . | . . . . Propulsion 8 | 2 2 2 2 Treads 6 | 2 2 2 . Leg 1 | . . . 1 Wheel 1 | . . . 1 Hover . | . . . . Flight . | . . . . Utility 12 | 2 4 . 6 Device 2 | 1 . . 1 Storage 6 | 1 4 . 1 Processor . | . . . . Hackware . | . . . . Protection 4 | . . . 4 Artifact . | . . . . Weapon 17 | . 6 4 7 Energy Gun 1 | . . 1 . Energy Cannon . | . . . . Ballistic Gun 7 | . 4 2 1 Ballistic Cannon 4 | . . . 4 Launcher 3 | . . 1 2 Special Weapon 2 | . 2 . . Impact Weapon . | . . . . Slashing Weapon . | . . . . Piercing Weapon . | . . . . Special Melee Weapon . | . . . . Unidentified Prototypes 1 | . . . 1 Parts Lost 11 | . . 2 9 Power 1 | . . . 1 Propulsion 3 | . . . 3 Utility 2 | . . . 2 Weapon 5 | . . 2 3 Highest Loss Streak 9 | . . 2 9 Average Slot Usage (%) 96 | . 99 99 87 Engine 5 | . 14 . . Core 8 | . . 13 14 Treads 27 | . 27 28 25 Storage 26 | . 28 28 21 Protection 1 | . . . 4 Energy Gun 3 | . 2 5 2 Ballistic Gun 17 | . 24 21 2 Ballistic Cannon 1 | . . . 5 Launcher 2 | . . . 9 Naked Turns . | . . . . Heaviest Build 59 | 15 57 58 59 Greatest Support 40 | 40 40 40 40 Greatest Overweight (x) 4 | . 1 1 4 Average Overweight (x) . | . . 1 . Largest Inventory Capacity 18 | 8 18 18 18 Average Capacity 15 | 7 14 18 14 Most Carried 18 | 8 18 18 18 Average Carried 14 | 6 14 17 12 Final Capacity 18 | 8 18 18 4 Final Carried 18 | 8 18 18 3 Class Distribution -------------------- 79% | Mutant 20% | Scavenger-Mutant Dominant Class ---------------- Mutant | -10/Materials Mutant | -10/Mines Mutant | -10/Exiles Resources | -11 -10 -10 -10 ----------- Run | Scr Mat Min Exi Matter Collected 1587 | 373 660 321 233 Remotely . | . . . . Salvage Created 1072 | 216 592 256 8 Parts 88 | 12 54 22 . Haulers Intercepted 2 | . 2 . . Recyclers Shooed 4 | . 3 1 . Parts Field Recycled . | . . . . Retrieved Matter . | . . . . Parts Self-Destructed . | . . . . Prevented . | . . . . Kills | -11 -10 -10 -10 ------- Run | Scr Mat Min Exi Combat Hostiles Destroyed 33 | . 13 15 5 Melee 1 | . . 1 . Guns 21 | . 13 8 . Cannons 1 | . . . 1 AOE 10 | . . 6 4 Classes Destroyed 9 | 3 5 1 . Worker 2 | 2 . . . Builder 2 | . 1 1 . Tunneler 5 | 5 . . . Hauler 2 | . 2 . . Recycler 2 | 1 1 . . Watcher 3 | . 3 . . Swarmer 9 | . 6 3 . Grunt 11 | . 7 4 . Assembled 14 | . . 8 6 Best Kill Streak 5 | 4 4 5 5 Combat Bots Only 5 | . 3 4 5 Max Kills in Single Turn 3 | 1 2 3 2 Gunslinging 1 | . 1 . . Exploded 3 | . . 3 2 Melee 1 | . . 1 . Uniques/NPCs Destroyed . | . . . . Combat | -11 -10 -10 -10 -------- Run | Scr Mat Min Exi Damage Taken 2022 | 10 485 337 1190 Core 256 | . 107 12 137 Absorbed by Shields . | . . . . Core Remaining (%) 100 | 100 . . . Volleys Fired 159 | 20 62 36 41 Largest 2 | 2 2 2 2 Hottest 100 | 60 100 85 70 Shots Fired 301 | 40 120 62 79 Gun 215 | 40 116 53 6 Cannon 70 | . . . 70 Launcher 12 | . . 9 3 Special 4 | . 4 . . Kinetic 248 | 20 101 51 76 Thermal 6 | . 4 2 . Explosive 12 | . . 9 3 Electromagnetic 35 | 20 15 . . Robot Hit Streak 15 | 8 10 15 8 Robot Miss Streak 4 | 3 4 3 4 Penetration Max . | . . . . Secondary Targets 3 | . 2 1 . Max Gunslinging Chain 1 | . 1 1 . Shots Hit Robots 181 | 26 69 38 48 Core Hits 92 | 9 31 29 23 Critical Hits 1 | . . 1 . Critical Kills 1 | . . 1 . Critical Parts Destroyed . | . . . . Melee Attacks . | . . . . Impact . | . . . . Slashing . | . . . . Piercing . | . . . . Sneak Attacks . | . . . . Combat Hostiles . | . . . . Follow-up Attacks . | . . . . Damage Inflicted 3194 | 352 900 942 1000 Guns 1709 | 330 900 436 43 Cannons 604 | . . . 604 Explosions 874 | 22 . 499 353 Melee . | . . . . Ramming 7 | . . 7 . Kinetic 2011 | 168 791 405 647 Thermal 53 | 22 . 31 . Explosive 852 | . . 499 353 Electromagnetic 271 | 162 109 . . Impact . | . . . . Slashing . | . . . . Piercing . | . . . . Highest Corruption . | . . . . Average Corruption . | . . . . Corruption Purged . | . . . . Overload Shots . | . . . . Overflow Damage 50 | . . 50 . Projectiles . | . . . . Explosions 50 | . . 50 . Melee . | . . . . Knockbacks 7 | . . . 7 Impact . | . . . . Kinetic 7 | . . . 7 Secondary . | . . . . Self-Inflicted Damage 40 | 11 . 29 . Shots 3 | 1 . 2 . Rammed 4 | . 1 3 . Targets Rammed 4 | . 1 3 . Kicked . | . . . . Crushed . | . . . . Highest Temperature 335 | 20 40 30 335 Average Temperature 120 | 18 17 12 170 Received Heat Transfer 252 | . 180 72 . Effects 2 | . . . 2 Energy Bleed 2 | . . . 2 Siege Activations . | . . . . Robots Corrupted . | . . . . Combat Hostiles . | . . . . Parts Fried 1 | 1 . . . Impact Corruptions . | . . . . Robots Melted . | . . . . Combat Hostiles . | . . . . Parts Melted . | . . . . Heat Transferred 124 | 50 . 74 . Parts Sabotaged . | . . . . Parts Stolen . | . . . . Parts Stripped . | . . . . Power Chain Reactions 1 | 1 . . . Missiles Intercepted . | . . . . Alert | -11 -10 -10 -10 ------- Run | Scr Mat Min Exi Peak Influence 316 | 40 316 170 . Initial 26 | . 26 . . Average 65 | 25 123 16 . Maximum Alert Level 1 | . 1 . . Low Security (%) 87 | 100 73 100 . Level 1 12 | . 26 . . Level 2 . | . . . . Level 3 . | . . . . Level 4 . | . . . . Level 5 . | . . . . High Security . | . . . . Max Security . | . . . . Squads Dispatched 1 | . 1 . . Investigation 1 | . 1 . . Extermination . | . . . . Reinforcement . | . . . . Assault . | . . . . Garrison . | . . . . Intercept . | . . . . Construction Impeded . | . . . . Haulers Reinforced . | . . . . Stealth | -11 -10 -10 -10 --------- Run | Scr Mat Min Exi Distress Signals 2 | . 2 . . Communications Jammed . | . . . . Distress Signals . | . . . . Times Spotted 59 | . 24 28 7 Peak Tracking Total 12 | . 4 12 8 Tactical Retreats 5 | . 1 4 . Traps | -11 -10 -10 -10 ------- Run | Scr Mat Min Exi Traps Triggered 1 | . 1 . . Indirectly . | . . . . Trap Hack Attempts . | . . . . Triggered . | . . . . Disarmed . | . . . . Reprogrammed . | . . . . Reused . | . . . . Traps Extracted . | . . . . Installed . | . . . . Triggered . | . . . . Machines | -11 -10 -10 -10 ---------- Run | Scr Mat Min Exi Machines Disabled 5 | . . . 5 Max in Single Turn 2 | . . . 2 Machines Sabotaged . | . . . . Garrisons Compromised . | . . . . Overloaded Fab Kills . | . . . . Fab Network Shutdowns . | . . . . Hacking | -11 -10 -10 -10 --------- Run | Scr Mat Min Exi Machines Accessed 11 | . 8 1 2 Terminals 7 | . 7 . . Fabricators . | . . . . Repair Stations 1 | . 1 . . Recycling Units . | . . . . Scanalyzers . | . . . . Garrison Access . | . . . . Total Hacks 32 | . 29 1 2 Successful 18 | . 15 1 2 Failed 14 | . 14 . . Catastrophic 1 | . 1 . . Database Lockouts . | . . . . Manual 23 | . 22 . 1 Terminals 27 | . 27 . . Fabricators . | . . . . Repair Stations 2 | . 2 . . Recycling Units . | . . . . Scanalyzers . | . . . . Garrison Access . | . . . . Terminal Hacks 10 | . 7 1 2 Record 1 | . . . 1 Part Schematic 2 | . 2 . . Robot Analysis 2 | . 2 . . Prototype ID Bank 1 | . 1 . . Open Door 1 | . . 1 . Unreport Threat 1 | . 1 . . Locate Traps 1 | . 1 . . EX-Prototype ID Bank 1 | . . . 1 Fabricator Hacks . | . . . . Repair Station Hacks 2 | . 2 . . Scan Component 1 | . 1 . . Repair 1 | . 1 . . Recycling Unit Hacks . | . . . . Scanalyzer . | . . . . Garrison Access Hacks . | . . . . Unauthorized Hacks 6 | . 6 . . Terminals 6 | . 6 . . Botnet 5 | . 5 . . Operators 1 | . 1 . . Fabricators . | . . . . Repair Stations . | . . . . Recycling Units . | . . . . Scanalyzers . | . . . . Garrison Access . | . . . . Data Cores Recovered . | . . . . Used . | . . . . Hacking Detections 8 | . 8 . . Full Trace Events . | . . . . Feedback Events . | . . . . Feedback Blocked . | . . . . Robot Schematics Acquired . | . . . . Robots Built . | . . . . Matter . | . . . . Time . | . . . . Total Robot Build Rating . | . . . . Part Schematics Acquired 2 | . 2 . . Parts Built . | . . . . Matter . | . . . . Time . | . . . . Total Part Build Rating . | . . . . Parts Repaired 1 | . 1 . . Time 26 | . 26 . . Parts Recycled . | . . . . Recycled Matter . | . . . . Retrieved Matter . | . . . . Retrieved Components . | . . . . Parts Scanalyzed . | . . . . Part Schematics Acquired . | . . . . Parts Damaged . | . . . . Bothacking | -11 -10 -10 -10 ------------ Run | Scr Mat Min Exi Used RIF Installer . | . . . . Robots Hacked . | . . . . Non-combat . | . . . . Combat . | . . . . Robot Hacks Applied . | . . . . Relay Couplers Released . | . . . . Robots Rewired . | . . . . Allies Hacked . | . . . . Hacks Repelled . | . . . . Allies | -11 -10 -10 -10 -------- Run | Scr Mat Min Exi Total Allies 5 | . . 5 . Largest Group 5 | . . 5 . Highest-Rated Group 87 | . . 87 . Highest-Rated Ally 31 | . . 31 . Total Orders 1 | . . . 1 RETURN 1 | . . . 1 Ally Attacks 11 | . . 11 . Total Damage 133 | . . 133 . Kills 3 | . . 3 . Allies Corrupted . | . . . . Allies Melted . | . . . . Intel | -11 -10 -10 -10 ------- Run | Scr Mat Min Exi Robot Analysis Total 2 | . 2 . . Derelict Logs Recovered 2 | . . 2 . Drone Launches 1 | . . . 1 Drone Recoveries 1 | . . . 1 Exploration | -11 -10 -10 -10 ------------- Run | Scr Mat Min Exi Turns Passed 3978 | 190 1338 1433 1017 Spaces Moved 1882 | 79 596 722 485 Core 1 | . . . 1 Treads 1853 | 62 596 722 473 Legs 17 | 17 . . . Wheels 11 | . . . 11 Hover . | . . . . Flight . | . . . . Fastest Speed 80 | 120 160 180 80 Average Speed 176 | 151 175 180 174 Slowest Speed 250 | 160 180 180 250 Overloaded Moves . | . . . . Propulsion Burnouts . | . . . . Robots Hopped . | . . . . Cave-ins Triggered . | . . . . Exploration Rate (%) 61 | 2 82 92 68 Regions Visited 3 Branch Regions 2 Pre-discovered Areas 3 | . . 2 1 Known Exits Taken . | . . . . Unknown Exits Taken 3 | 1 1 1 . Scrap Searched 2 | . . 2 . Spaces Dug 3 | . 3 . . Terrain Destroyed 78 | 5 3 61 9 Melee . | . . . . Projectile 3 | . 3 . . AOE 75 | 5 . 61 9 Terrain Rammed . | . . . . Walls Destroyed . | . . . . Machines Disabled . | . . . . Actions | -11 -10 -10 -10 --------- Run | Scr Mat Min Exi Total 2261 | 110 768 798 585 Wait 60 | . 56 3 1 Move 1879 | 78 595 721 485 Hop . | . . . . Pick Up 51 | 4 21 13 13 Fast Attach 14 | 2 2 2 8 Attach 10 | 2 . 2 6 Detach 3 | 1 . . 2 Swap 18 | . 12 4 2 Drop 63 | 3 19 14 27 Fire 159 | 20 62 36 41 Melee . | . . . . Ram . | . . . . Kick . | . . . . Crush 4 | . 1 3 . Escape Stasis . | . . . . Rewire . | . . . . Trap . | . . . . Miscellaneous . | . . . . Route ------- -11/Scrapyard -10/Materials (discovered 4 exits: [*Mat x2] / *Min x2) -10/Mines (discovered 3 exits: [*Mat x2] / *Exi) -10/Exiles (discovered 1 exit: [*Min]) History --------- Turn | Location | Event 23 | -11/Scrapyard | Discovered new exit (range 3) 191 | -11/Scrapyard | Entered Materials 306 | -10/Materials | Build established: Mutant 610 | -10/Materials | Repaired Lgt. Treads 674 | -10/Materials | Discovered new exit (range 5) 795 | -10/Materials | Discovered new exit (range 15) 1138 | -10/Materials | Discovered new exit (range 9) 1332 | -10/Materials | Discovered new exit (range 6) 1529 | -10/Materials | Entered Mines 1534 | -10/Mines | Found the Drone Emporium 1543 | -10/Mines | Found Prototype Device 1778 | -10/Mines | Discovered new exit (range 12) 2060 | -10/Mines | Learned Materials emergency access door positions 2060 | -10/Mines | Assisted by bots powering up and referring to "LRC-V3" 2115 | -10/Mines | Assembled infested the area 2178 | -10/Mines | Learned location of Storage (-7) 2181 | -10/Mines | Discovered new exit (range 6) 2552 | -10/Mines | Deemed a non-threat by the Exiles lab entrance 2552 | -10/Mines | Discovered new exit (range 5) 2690 | -10/Mines | Build established: Scavenger-Mutant 2962 | -10/Mines | Entered Exiles 2991 | -10/Exiles | Discovered new exit (range 15) 3046 | -10/Exiles | Met 8R-AWN 3075 | -10/Exiles | Met EX-HEX 3240 | -10/Exiles | Met EX-DEC 3277 | -10/Exiles | Learned location of Zion (-7) 3422 | -10/Exiles | Build established: Mutant 3487 | -10/Exiles | Met EX-BIN 3507 | -10/Exiles | Aligned with FarCom system 3508 | -10/Exiles | Given EX-Vault access code 3550 | -10/Exiles | Opened EX-Vault 3562 | -10/Exiles | Found Field Lobotomy Kit 3567 | -10/Exiles | Found Modified TNC 3572 | -10/Exiles | Found AWS/Thermal 3610 | -10/Exiles | Warned to stay clear of 0b10 Research branches 3775 | -10/Exiles | Identified Decoy Drone Bay 3834 | -10/Exiles | Attacked by the Exiles 3846 | -10/Exiles | Core integrity fell below 50% 3942 | -10/Exiles | Core integrity fell below 20% 3979 | -10/Exiles | Destroyed by 8R-AWN with 8R-AWN's Boregun Last Messages --------------- 03955_ Lgt. Cannon destroyed. 03955_ Penetrated by HV Slug. 03959_ Acquired Assault Rifle. 03961_ Extracted 1 energy. 03962_ Acquired Hcp. Battery. 03962_ Penetrated by HV Slug. 03962_ HV Slug penetrates Machine. 03962_ Penetrated by HV Slug. 03962_ HV Slug penetrates Machine. 03965_ Assembled Analyzer disabled. 03966_ Penetrated by HV Slug. 03966_ HV Slug penetrates Machine. 03966_ Penetrated by HV Slug. 03966_ HV Slug penetrates Wall. 03970_ Penetrated by HV Slug. 03970_ HV Slug penetrates Wall. 03970_ Penetrated by HV Slug. 03970_ HV Slug penetrates Wall. 03971_ 8R-AWN knocked back. 03974_ Penetrated by HV Slug. Map ----- +----------------------------------------------------+ | ????# #?#"""""""#????????????????????????????? | | ????# #?#"""""""#????????????????????????????? | | ???## ###"" """"#????????????????????????????? | | ???#" """"#????????????????????????????? | | ???#" """#????????????????????????????? | | ???#" """#????????????????????????????? | | ???#" """#????????????????????????????? | | ???#" """#????????????????????????????? | | ???#" """##???????????????????????????? | | ???## """""???????????????????????????? | | ????# """##???????????????????????????? | | ????#" "X" """""???????????????????????????? | | ????#" """ #????????????????????????????? | | ????#" """""""""#????????????????????????????? | | ???##" ###########????????????????????????????? | | ??##"" #??????????????????????????????????????? | | ###"" #??????????????????????????????????????? | | """"" ##?????????????????????????????????????? | | " "" ##??############??????????????????????? | | " ####; "" """"##?????????????????????? | | " "" """"##????????????????????? | | " #????????????????????? | | """#????????????????????? | | "a"#???????????#####????? | | " "##?????????##" #????? | | @ ""###???????#" #????? | | """""" ""#??????##"* ##???? | | ######""" #????### ###?? | | ##????#####"" ##???# * ### | | #?????????## ! ##### #" | | ???????????# ;## * | | ??????????##"" ## | | #####??####" g #### | | # ####""" #?#"""""## | | """" #" ##?#######? | | ######?????????? | | ##??????????????? | | " ##???????????????? | | " "" !|!!" "#????????????????? | | ""## ##""" " "[["" #????????????????? | | ""#### ######"""!"""# ##????????????????? | | "##??# #????###""""### ####?????????????????? | | "#??## ####???######?#######????????????????????? | | ##??# "!#?????????????????????????????????????? | | ????#" !#?????????????????????????????????????? | | ????#" "#?????????????????????????????????????? | | ????#!!"" "#?????????????????????????????????????? | | ????########?????????????????????????????????????? | | ?????????????????????????????????????????????????? | | ?????????????????????????????????????????????????? | +----------------------------------------------------+ Best States ------------- Heat Dissipation 25 Energy Generation 14 Energy Capacity 250 Matter Stores 300 Matter Capacity 300 Sight Range 16 Terrain Scan Range 16 Terrain Scan Density 10 Armor Coverage 150 Core Shielding 20 Utility Shielding 33 Evasion (%) 41 Recoil Reduction 2 Item Schematics ----------------- Hcp. Storage Unit | -10/Materials | Hacked Hcp. Battery | -10/Materials | Hacked Robot Schematics ------------------ None Fabricated ------------ Nothing Alien Tech Used ----------------- None Achievements -------------- None Challenges ------------ None Game ------ Seed TeslaBackupRecalibrator Manual? 0 Play Time 00:34:57 Cumulative 24.5 hours Start 2020.10.09 @ 17:18:43 End 2020.10.09 @ 17:53:43 Sessions 1 Manual Loads 0 Difficulty Rogue Special Mode None Game No. 20 Rogue 20 Adventurer 0 Explorer 0 Win Type - Total 0 Types 0/0/0/0/0/0/0/0/0 Lore% 35 Gallery% 36 Achievement% 48 Wizard Run 0 Options --------- ASCII 0 Keyboard 1 Movement Numpad Keybinds 0 Fullscreen 1 Font 12/Terminus Map View 83x54 Tactical HUD 1 Map Filters NONE Filters NONE Steam 1 RUN: abf1834e-b4e6-4db1-b781-fb58e377b407